bitfinex-derivatives/quotes_ETHF0:USTF0_20250708
["timestamp","ask_amount","ask_price","bid_price","bid_amount"]
[1752001277306,7.16620243,2623.9,2623.8,1.70311963]
[1752001278112,0.76217,2623.7,2623.6,2.46529963]
[1752001278314,1.42487,2623.7,2623.6,0.76218]
[1752001278807,0.76223,2623.5,2623.4,3.14805963]
[1752001279113,1.42493,2623.5,2623.4,3.81197963]
[1752001279513,1.42493,2623.5,2623.4,2.10886]
[1752001279713,2.41313,2623.5,2623.4,0.6639]
[1752001279908,5.62093,2623.5,2623.4,1.42616]
[1752001280810,3.2078,2623.5,2623.4,1.42616]
[1752001281009,3.2078,2623.5,2623.4,3.12927963]
[1752001281710,3.2078,2623.5,2623.4,1.42616]
[1752001281911,0.6428,2623.5,2623.4,3.12927963]
[1752001282512,0.6428,2623.5,2623.4,1.42616]
[1752001282714,0.76218,2623.7,2623.6,0.7622]
[1752001282908,1.40498,2623.7,2623.6,0.7622]
[1752001283213,2.42998,2623.7,2623.6,0.7622]
[1752001283409,2.42998,2623.7,2623.6,0.6865]
[1752001283614,1.6678,2623.7,2623.3,1.70311963]
[1752001283809,0.76222,2623.6,2623.5,0.76222]
[1752001284113,1.40502,2623.6,2623.5,0.76222]
[1752001284309,1.40502,2623.6,2623.5,1.44872]
[1752001285209,0.7622,2623.7,2623.6,0.76218]
[1752001285409,0.7622,2623.7,2623.6,1.44868]
[1752001285611,1.405,2623.7,2623.6,0.76218]
[1752001285812,1.405,2623.7,2623.6,1.44868]
[1752001287810,0.6428,2623.7,2623.6,1.44868]
[1752001288014,3.2078,2623.9,2623.8,0.76215]
[1752001288315,4.61272,2623.9,2623.8,0.76215]
[1752001288514,4.61272,2623.9,2623.8,1.44865]
[1752001289119,5.63772,2623.9,2623.8,1.44865]
[1752001289617,0.7622,2623.6,2623.5,0.6709]
[1752001289813,1.405,2623.6,2623.5,0.6709]
[1752001290318,1.405,2623.6,2623.5,1.3574]
[1752001290713,1.405,2623.6,2623.5,0.6709]
[1752001290714,2.43,2623.6,2623.5,0.6709]
[1752001291015,2.43,2623.6,2623.5,1.43313]
[1752001291312,0.7622,2623.7,2623.6,0.7622]
[1752001291515,0.7622,2623.6,2623.5,0.6709]
[1752001291711,0.6428,2623.6,2623.5,1.43313]
[1752001292022,3.8679,2623.9,2623.8,0.76215]
[1752001292216,3.8506,2623.9,2623.8,0.76215]
[1752001292515,4.61272,2623.9,2623.8,0.6865]
[1752001292919,5.63772,2623.9,2623.8,0.6865]
[1752001293120,4.8756,2623.9,2623.6,0.76219]
[1752001293314,0.76217,2623.8,2623.6,0.76219]
[1752001293715,0.6428,2623.7,2623.6,1.44869]
[1752001293921,3.2078,2623.9,2623.8,0.76215]
[1752001294220,0.6428,2623.9,2623.8,1.44865]
[1752001294417,0.76208,2624.1,2623.8,0.6865]
[1752001294916,0.76208,2624.1,2623.9,0.7621]
[1752001295120,0.6428,2624.0,2623.9,0.7621]
[1752001295616,0.6428,2624.0,2623.9,1.4486]
[1752001295816,0.6428,2624.0,2623.9,0.7621]
[1752001296011,5.04878243,2624.0,2623.5,2.37401963]
[1752001296217,3.96998,2623.7,2623.5,3.13623963]
[1752001296412,0.6428,2623.6,2623.5,3.82274963]
[1752001297220,1.405,2623.6,2623.5,3.82274963]
[1752001297614,0.6428,2623.6,2623.5,3.82274963]
[1752001297813,1.405,2623.6,2623.5,3.06051963]
[1752001298014,2.43,2623.6,2623.5,3.06051963]
[1752001298214,0.6428,2623.6,2623.5,2.11963]
[1752001299213,0.6428,2623.6,2623.5,3.82274963]
[1752001299420,0.6428,2623.6,2623.5,2.11963]
[1752001300415,1.6678,2623.6,2623.3,1.70311963]
[1752001300623,6.58878243,2623.4,2623.3,1.70683003]
[1752001300812,9.01885243,2623.4,2623.2,3.03150201]
[1752001301017,5.63787,2623.4,2623.2,3.03150201]
[1752001301219,5.63787,2623.4,2623.3,0.6865]
[1752001301519,1.78729,2623.3,2623.2,2.2763044]
[1752001301716,2.43009,2623.3,2623.2,2.2763044]
[1752001301919,1.6678,2623.3,2623.2,0.76232]
[1752001302118,1.6678,2623.3,2623.2,1.44882]
[1752001302119,0.6428,2623.3,2623.2,1.44882]
[1752001302415,4.63357,2623.4,2623.3,0.76229]
[1752001302416,3.2078,2623.4,2623.3,0.76229]
[1752001302618,3.8506,2623.4,2623.3,1.44879]
[1752001303010,3.8506,2623.4,2623.3,0.76229]
[1752001303212,3.8506,2623.4,2623.3,1.44879]
[1752001303616,3.8506,2623.4,2623.1,1.70784916]
[1752001303617,0.76232,2623.2,2623.1,1.70784916]
[1752001303818,1.6678,2623.2,2623.1,3.15669916]
[1752001304016,1.6678,2623.2,2623.1,1.44885]
[1752001304017,0.6428,2623.2,2623.1,1.44885]
[1752001304222,0.6428,2623.2,2623.1,3.15669916]
[1752001306923,3.2078,2623.4,2623.3,0.76229]
[1752001307127,3.8506,2623.4,2623.3,0.76229]
[1752001307326,0.6428,2623.4,2623.3,0.76229]
[1752001307831,3.2078,2623.7,2623.6,0.7622]
[1752001308129,3.8506,2623.7,2623.6,0.7622]
[1752001308630,3.8506,2623.7,2623.6,1.3971]
[1752001309130,3.2078,2623.7,2623.6,3.1069448]
[1752001309626,3.2078,2623.7,2623.6,3.6734044]
[1752001309928,1.025,2623.8,2623.7,0.76217]
[1752001310127,1.025,2623.8,2623.7,2.47113093]
[1752001310325,0.76212,2623.9,2623.8,0.76213]
[1752001310529,2.9576,2623.9,2623.8,0.76213]
[1752001310730,2.9576,2623.9,2623.8,1.43933]
[1752001311030,2.9576,2623.9,2623.8,0.76213]
[1752001311423,2.9576,2623.9,2623.8,1.43933]
[1752001311626,3.71972,2623.9,2623.8,0.76213]
[1752001311825,1.6602,2623.9,2623.8,1.43933]
[1752001312025,0.6352,2623.9,2623.8,1.43933]
[1752001312928,3.2078,2624.0,2623.9,0.76212]
[1752001313131,3.843,2624.0,2623.9,1.43932]
[1752001313331,3.2078,2624.0,2623.9,1.43932]
[1752001313531,3.2078,2624.0,2623.9,0.76212]
[1752001313731,3.2078,2624.3,2623.9,1.43932]
[1752001314034,3.2078,2624.3,2624.2,0.76203]
[1752001314232,3.843,2624.3,2624.2,0.76203]
[1752001314630,4.8526,2624.3,2623.9,1.70896093]
[1752001314931,1.77165,2624.2,2624.1,0.76205]
[1752001315131,1.77165,2624.2,2624.1,1.43925]
[1752001315132,2.9666,2624.2,2624.1,1.43925]
[1752001315327,2.9666,2624.2,2624.1,0.76205]
[1752001315531,0.6352,2624.2,2624.1,0.76205]
[1752001315834,0.6352,2624.2,2624.1,1.43925]
[1752001316236,1.39723,2624.2,2624.1,1.43925]
[1752001316431,0.6352,2624.2,2624.1,1.43925]
[1752001316636,3.2078,2624.3,2624.2,0.76203]
[1752001316830,3.2078,2624.3,2624.2,1.43923]
[1752001317036,3.2078,2624.6,2624.3,1.90499]
[1752001317332,3.843,2624.6,2624.5,0.76194]
[1752001317632,3.843,2624.6,2624.5,1.43914]
[1752001318033,3.843,2624.6,2624.5,0.76194]
[1752001318830,3.843,2624.6,2624.5,1.43914]
[1752001320426,4.8526,2624.6,2624.5,1.43914]
[1752001320830,3.843,2624.6,2624.5,1.43914]
[1752001321234,4.60491,2624.6,2624.5,1.43914]
[1752001321432,1.90489,2624.5,2624.1,2.46720093]
[1752001321736,3.843,2624.2,2624.1,0.76204]
[1752001322033,3.843,2624.2,2624.1,1.43924]
[1752001322227,4.8526,2624.2,2624.1,1.43924]
[1752001322429,5.61463,2624.2,2624.1,0.6772]
[1752001322626,4.8526,2624.2,2624.1,1.43926]
[1752001322832,3.843,2624.2,2624.1,1.43926]
[1752001323435,0.6352,2624.2,2624.1,1.43926]
[1752001323739,0.76209,2624.0,2623.9,2.2763044]
[1752001323943,2.40689,2624.0,2623.9,0.76208]
[1752001324134,1.6448,2624.0,2623.9,0.76208]
[1752001324437,1.6448,2624.0,2623.9,1.43928]
[1752001325339,1.39729,2624.0,2623.9,1.43928]
[1752001325834,0.6352,2624.0,2623.9,3.7155844]
[1752001326339,0.6352,2624.0,2623.9,1.43928]
[1752001326539,1.39729,2624.0,2623.9,1.43928]
[1752001326840,0.6352,2624.0,2623.9,1.43928]
[1752001328940,1.39037,2624.4,2624.3,0.762]
[1752001329235,2.02557,2624.4,2624.3,0.762]
[1752001329435,1.2636,2624.4,2624.3,0.762]
[1752001331644,2.02557,2624.4,2624.3,0.762]
[1752001331944,3.2078,2624.5,2624.4,0.76197]
[1752001332142,4.60494,2624.5,2624.4,0.76197]
[1752001332440,0.76198,2624.4,2624.3,0.76197]
[1752001332647,2.68248,2624.4,2624.3,0.76197]
[1752001333145,1.9205,2624.4,2624.3,0.76197]
[1752001333341,1.9205,2624.4,2624.3,1.43917]
[1752001333641,0.6626,2624.4,2624.3,0.76197]
[1752001333949,1.2978,2624.4,2624.3,0.76197]
[1752001334243,1.2978,2624.4,2624.3,1.43917]
[1752001334646,2.3074,2624.4,2624.3,0.76197]
[1752001334852,0.762,2624.3,2624.2,0.76201]
[1752001335045,1.9966,2624.3,2624.2,0.76201]
[1752001335344,0.6352,2624.3,2624.2,1.43921]
[1752001335546,1.3972,2624.3,2624.2,1.43921]
[1752001335741,2.4068,2624.3,2624.2,0.76201]
[1752001335943,1.6448,2624.3,2623.8,2.2763044]
[1752001336144,2.371,2624.2,2624.1,0.76206]
[1752001336448,3.0062,2624.2,2624.1,0.76206]
[1752001337043,3.76823,2624.2,2624.1,0.76206]
[1752001338047,0.76208,2624.1,2624.0,0.76207]
[1752001338249,1.8927,2624.1,2624.0,0.76207]
[1752001338450,2.9023,2624.1,2624.0,0.76207]
[1752001338647,1.6722,2624.4,2624.3,0.762]
[1752001338949,1.2978,2624.4,2624.3,1.4392]
[1752001339345,3.06937,2624.4,2624.3,1.4392]
[1752001339851,2.3074,2624.4,2624.3,0.762]
[1752001340045,3.06937,2624.4,2624.3,1.4392]
[1752001340742,3.06937,2624.4,2624.3,0.6772]
[1752001340951,4.36689,2624.4,2624.3,0.762]
[1752001341151,0.76203,2624.3,2624.2,0.76202]
[1752001341350,2.3071,2624.3,2624.0,2.2763044]
[1752001341654,2.44864,2624.2,2624.1,0.76206]
[1752001341843,3.74614,2624.2,2624.1,0.76206]
[1752001342046,2.9841,2624.2,2624.1,1.44756]
[1752001342247,1.9745,2624.2,2624.1,1.44756]
[1752001342448,2.73653,2624.2,2624.1,1.44756]
[1752001343045,0.677,2624.2,2624.1,1.44756]
[1752001343348,1.43903,2624.2,2624.1,1.44756]
[1752001343552,0.76203,2624.2,2624.1,0.76206]
[1752001343748,1.43903,2624.2,2624.1,0.76206]
[1752001343948,0.677,2624.2,2624.1,1.44756]
[1752001344342,1.43903,2624.2,2624.1,1.44756]
[1752001344547,2.39413,2624.2,2624.1,1.44756]
[1752001344750,3.68023,2624.2,2624.1,1.44756]
[1752001344947,2.9182,2624.2,2624.1,0.76206]
[1752001345144,3.68023,2624.2,2624.1,0.76206]
[1752001346448,6.88803,2624.2,2624.1,0.76206]
[1752001346649,6.126,2624.2,2623.7,2.2763044]
[1752001346850,2.38927993,2623.8,2623.6,3.39818042]
[1752001347050,2.38927993,2623.8,2623.7,2.27984305]
[1752001347254,4.02137993,2623.8,2623.7,0.6855]
[1752001347752,1.6321,2623.8,2623.7,3.04201305]
[1752001348154,1.6321,2623.8,2623.7,3.72751305]
[1752001348451,2.39425,2623.8,2623.7,2.27984305]
[1752001348751,0.76217,2623.7,2623.5,3.04206305]
[1752001348947,0.7622,2623.6,2623.5,3.04206305]
[1752001349153,0.7622,2623.6,2623.5,2.27984305]
[1752001349355,0.7622,2623.6,2623.5,2.96534305]
[1752001349548,1.4337,2623.6,2623.5,2.96534305]
[1752001349749,1.4337,2623.6,2623.5,3.72757305]
[1752001350350,1.4337,2623.6,2623.5,0.6855]
[1752001350751,0.76223,2623.5,2623.4,3.72989305]
[1752001350965,3.2078,2623.5,2623.2,2.27984305]
[1752001351254,2.38940993,2623.4,2623.2,0.76231]
[1752001351454,3.77260993,2623.4,2623.2,0.76231]
[1752001351956,3.77260993,2623.4,2623.3,0.76229]
[1752001352250,2.14549,2623.4,2623.3,0.6855]
[1752001352457,2.82249,2623.4,2623.3,0.6855]
[1752001352650,2.82249,2623.4,2623.2,0.7623]
[1752001352846,2.82249,2623.4,2623.3,0.6855]
[1752001353557,3.97005,2623.5,2623.3,0.76229]
[1752001353760,0.677,2623.4,2623.1,0.6605]
[1752001354060,0.677,2623.4,2623.3,0.6855]
[1752001354262,0.677,2623.4,2623.3,1.44779]
[1752001354460,0.677,2623.4,2623.3,0.76229]
[1752001354760,1.43926,2623.4,2623.3,1.44779]
[1752001355054,3.97005,2623.5,2623.3,1.44779]
[1752001355257,3.2078,2623.5,2623.4,0.76226]
[1752001355454,3.8848,2623.5,2623.4,1.44776]
[1752001356553,3.2078,2623.5,2623.4,1.44776]
[1752001358061,6.46701993,2623.5,2623.1,2.94034305]
[1752001358360,7.22926993,2623.5,2623.1,2.94034305]
[1752001358560,7.22926993,2623.5,2623.4,1.44776]
[1752001358860,3.2078,2623.5,2623.4,1.44776]
[1752001359056,3.8848,2623.5,2623.3,0.76227]
[1752001359254,0.76228,2623.4,2623.3,0.76229]
[1752001359560,0.76228,2623.4,2623.3,1.44779]
[1752001360660,0.76228,2623.4,2623.3,0.6855]
[1752001361258,2.77228,2623.4,2623.3,0.6855]
[1752001363057,1.38658,2623.4,2623.3,1.44779]
[1752001363263,2.06358,2623.4,2623.3,1.44779]
[1752001363458,1.3013,2623.4,2623.3,1.44779]
[1752001363765,1.3013,2623.4,2622.8,6.37708]
[1752001363766,1.90579,2623.3,2622.8,2.27984305]
[1752001363956,3.8848,2622.9,2622.6,0.76247]
[1752001364157,0.76246,2622.8,2622.6,0.76247]
[1752001364557,0.76247,2622.7,2622.6,0.76247]
[1752001364851,0.76247,2622.7,2622.4,3.39818042]
[1752001364852,0.76252,2622.5,2622.4,2.27984305]
[1752001365051,0.76252,2622.5,2622.3,1.44376]
[1752001365052,0.76255,2622.4,2622.3,1.44376]
[1752001365255,0.76255,2622.4,2622.3,0.6812]
[1752001365460,0.76264,2622.2,2622.0,2.27984305]
[1752001365656,2.38975993,2622.1,2622.0,2.92754305]
[1752001365857,2.38975993,2622.1,2622.0,1.3332]
[1752001366057,2.38975993,2622.1,2622.0,0.6855]
[1752001366956,4.15332615,2622.1,2622.0,0.6855]
[1752001367156,0.7627,2621.9,2621.8,0.76272]
[1752001367357,4.6475,2621.9,2621.8,0.76272]
[1752001367553,4.6475,2621.9,2621.8,1.44822]
[1752001369263,5.6026,2621.9,2621.8,0.6855]
[1752001370963,0.76281,2621.5,2621.4,0.6477]
[1752001371266,1.44041,2621.5,2621.4,0.6477]
[1752001371466,1.44041,2621.5,2621.4,1.3041]
[1752001371659,0.6776,2621.5,2621.4,1.3041]
[1752001371863,2.39551,2621.5,2621.4,1.3041]
[1752001372260,1.44041,2621.5,2621.4,1.3041]
[1752001373166,1.44041,2621.5,2621.4,2.06694]
[1752001373863,1.44041,2621.5,2621.4,1.41054]
[1752001374064,1.44041,2621.5,2621.4,2.06694]
[1752001374261,1.44041,2621.5,2621.4,1.41054]
[1752001374466,0.6776,2621.5,2621.4,2.06694]
[1752001375271,1.44041,2621.5,2621.4,2.06694]
[1752001377769,0.6776,2621.5,2621.4,2.06694]
[1752001377971,3.2078,2621.6,2621.5,0.76281]
[1752001378172,3.8854,2621.6,2621.5,1.41921]
[1752001378368,3.8854,2621.6,2621.5,0.76281]
[1752001378770,3.8854,2621.6,2621.5,1.41921]
[1752001379267,4.64819,2621.6,2621.5,1.41921]
[1752001379678,5.66239,2621.6,2621.5,1.41921]
[1752001380278,4.8996,2621.6,2621.5,1.41921]
[1752001380576,4.64819,2621.6,2621.5,1.41921]
[1752001381673,3.8854,2621.6,2621.5,1.41921]
[1752001382069,3.2078,2621.6,2621.5,1.41921]
[1752001382271,3.97051,2621.9,2621.8,0.76273]
[1752001382475,4.64811,2621.9,2621.8,0.76273]
[1752001383574,3.97051,2621.9,2621.8,0.76273]
[1752001383879,0.76276,2621.8,2621.7,0.76274]
[1752001384279,2.07496,2621.8,2621.7,0.76274]
[1752001385179,2.07496,2621.8,2621.7,1.41914]
[1752001385380,2.07496,2621.8,2621.7,0.76274]
[1752001385775,3.76676,2621.8,2621.7,0.76274]
[1752001386480,3.76676,2621.8,2621.7,1.41914]
[1752001386677,3.76676,2621.8,2621.7,0.76274]
[1752001386876,3.76676,2621.8,2621.7,1.41914]
[1752001387079,3.76676,2621.8,2621.7,0.76274]
[1752001387279,3.76676,2621.8,2621.7,1.41914]
[1752001387482,3.76676,2621.8,2621.7,0.76274]
[1752001388883,5.39700064,2621.8,2621.7,0.76274]
[1752001389987,3.2078,2621.9,2621.8,0.76273]
[1752001390590,3.2078,2621.9,2621.8,1.41523]
[1752001390787,3.8854,2621.9,2621.8,1.41523]
[1752001391784,3.2078,2621.9,2621.8,1.41523]
[1752001392087,4.98463,2622.2,2622.1,0.76264]
[1752001392289,5.66223,2622.2,2622.1,0.76264]
[1752001393084,4.8996,2622.2,2621.8,0.6525]
[1752001393285,0.76276,2621.7,2621.6,1.70830191]
[1752001393589,0.76281,2621.5,2621.4,1.39283]
[1752001393784,0.76281,2621.5,2621.4,0.63]
[1752001394187,0.76281,2621.5,2621.4,1.39284]
[1752001394386,0.7629,2621.2,2621.1,1.70830191]
[1752001394588,0.7629,2621.2,2621.1,1.41932]
[1752001395184,1.4405,2621.2,2621.1,3.12762191]
[1752001395791,1.4405,2621.2,2621.1,2.47122191]
[1752001396183,1.4405,2621.2,2621.1,3.12762191]
[1752001396783,0.6776,2621.2,2621.1,3.12762191]
[1752001397692,1.4405,2621.2,2621.1,3.12762191]
[1752001398092,0.6776,2621.2,2621.1,3.12762191]
[1752001398886,3.2078,2621.3,2621.2,0.7629]
[1752001399092,3.8854,2621.3,2621.2,1.4193]
[1752001399290,3.8854,2621.3,2621.2,0.7629]
[1752001399591,3.8854,2621.3,2621.2,1.4193]
[1752001401789,0.76293,2621.1,2621.0,3.04277305]
[1752001401990,1.6508,2621.1,2620.8,2.27984305]
[1752001402196,1.6508,2621.1,2621.0,0.76296]
[1752001402496,1.6508,2621.1,2621.0,1.43406]
[1752001402697,2.41373,2621.1,2621.0,0.76296]
[1752001402898,2.41373,2621.1,2621.0,1.43406]
[1752001403090,1.6508,2621.1,2621.0,1.43406]
[1752001403692,1.45462,2621.2,2621.1,0.76293]
[1752001404093,2.09122,2621.2,2621.1,0.76293]
[1752001404296,1.3283,2621.2,2621.1,1.43403]
[1752001404695,2.0912,2621.2,2621.1,1.43403]
[1752001405199,2.0912,2621.2,2621.1,0.6711]
[1752001405394,3.3618,2621.2,2621.1,0.6711]
[1752001405600,3.3618,2621.2,2620.7,0.6493]
[1752001405601,5.53359,2621.2,2620.7,3.69217305]
[1752001405802,0.76302,2620.8,2620.7,3.69217305]
[1752001405992,0.76301,2620.9,2620.8,0.76299]
[1752001406397,2.03361,2620.9,2620.8,0.76299]
[1752001407196,3.69761,2620.9,2620.8,0.76299]
[1752001407903,0.76308,2620.6,2620.5,3.04289305]
[1752001408097,0.76308,2620.6,2620.5,1.43415]
[1752001408098,0.6366,2620.6,2620.5,1.43415]
[1752001408598,4.2352,2621.0,2620.6,1.90767]
[1752001408900,4.2352,2621.0,2620.6,0.76306]
[1752001408901,1.39968,2620.7,2620.6,0.76306]
[1752001409096,2.42708,2620.7,2620.6,0.76306]
[1752001409301,0.7631,2620.6,2620.5,0.76308]
[1752001409605,0.6366,2620.6,2620.5,1.43418]
[1752001409799,1.39968,2620.6,2620.5,1.43418]
[1752001409996,1.664,2620.6,2620.3,2.27984305]
[1752001410201,0.76316,2620.3,2620.2,3.04303305]
[1752001410397,3.2078,2620.4,2620.2,2.27984305]
[1752001410603,3.2078,2620.4,2620.3,0.76316]
[1752001410898,3.8444,2620.4,2620.3,1.38886]
[1752001411096,3.2078,2620.4,2620.3,2.05996]
[1752001411293,3.8444,2620.4,2620.3,2.05996]
[1752001411504,4.60753,2620.4,2620.3,2.05996]
[1752001411703,4.60753,2620.4,2620.3,1.38886]
[1752001412005,4.60753,2620.4,2620.3,2.05996]
[1752001412006,3.8444,2620.4,2620.3,2.05996]
[1752001412201,3.8444,2620.4,2620.3,1.38886]
[1752001412403,3.8444,2620.4,2620.3,2.05996]
[1752001413002,3.2078,2620.4,2620.3,2.05996]
[1752001413197,3.2078,2620.7,2620.6,0.76308]
[1752001413402,4.60745,2620.7,2620.6,0.76308]
[1752001413607,0.76309,2620.6,2620.5,0.76309]
[1752001413807,1.39969,2620.6,2620.5,0.76309]
[1752001414008,0.6366,2620.6,2620.5,0.76309]
[1752001414208,0.6366,2620.6,2620.5,1.43419]
[1752001414605,3.2078,2620.7,2620.6,0.76308]
[1752001414807,4.60745,2620.7,2620.6,0.76308]
[1752001415009,3.8444,2620.7,2620.6,1.43418]
[1752001415209,4.60745,2620.7,2620.6,1.43418]
[1752001416106,0.76308,2620.6,2620.5,0.76308]
[1752001416311,3.2078,2620.7,2620.6,1.43418]
[1752001416508,3.8444,2620.7,2620.6,1.43418]
[1752001416708,3.8444,2620.7,2620.6,0.76308]
[1752001417406,4.60745,2620.7,2620.6,1.43418]
[1752001417610,3.8444,2620.7,2620.6,1.43418]
[1752001417811,3.2078,2620.7,2620.6,1.43418]
[1752001418812,3.8444,2620.7,2620.6,1.43418]
[1752001420515,0.6366,2620.7,2620.6,1.43418]
[1752001420719,1.39965,2620.7,2620.6,1.43418]
[1752001420914,0.6366,2620.7,2620.6,1.43418]
[1752001421315,1.39965,2620.7,2620.6,1.43418]
[1752001421718,2.42705,2620.7,2620.6,1.43418]
[1752001422820,1.664,2620.7,2620.3,2.90554305]
[1752001423018,0.76312,2620.5,2620.4,0.76311]
[1752001423322,4.11511304,2620.6,2620.5,0.76311]
[1752001423516,6.07441304,2620.6,2620.5,0.76311]
[1752001424217,6.07441304,2620.6,2620.5,1.43421]
[1752001424417,6.07441304,2620.6,2620.5,0.76311]
[1752001424815,6.07441304,2620.6,2620.5,1.43421]
[1752001425217,6.07441304,2620.6,2620.5,0.76311]
[1752001425413,6.07441304,2620.6,2620.5,1.43421]
[1752001425622,6.07441304,2620.6,2620.5,0.6711]
[1752001427123,0.76313,2620.4,2620.3,1.38886]
[1752001427325,0.76313,2620.4,2620.3,2.05996]
[1752001427519,0.76313,2620.4,2620.3,1.38886]
[1752001427718,0.76313,2620.4,2620.3,2.05996]
[1752001428733,1.39973,2620.4,2620.3,2.05996]
[1752001429329,0.6366,2620.4,2620.3,2.05996]
[1752001429531,0.6931,2620.6,2620.5,0.76311]
[1752001429724,0.6931,2620.6,2620.5,0.6711]
[1752001429725,1.3297,2620.6,2620.5,0.6711]
[1752001429928,0.76316,2620.3,2620.2,2.27984305]
[1752001430128,1.39976,2620.3,2620.1,3.04305305]
[1752001430325,1.39976,2620.3,2620.2,2.94634305]
[1752001430528,1.39976,2620.3,2620.1,0.76321]
[1752001430529,0.76319,2620.2,2620.1,2.27984305]
[1752001430726,2.6958,2620.2,2620.1,0.76322]
[1752001430931,1.3464,2620.2,2620.1,0.76322]
[1752001431130,1.3464,2620.2,2620.1,1.42972]
[1752001431636,2.10959,2620.2,2620.1,0.6665]
[1752001431833,2.10959,2620.2,2620.1,1.42972]
[1752001432132,1.3464,2620.2,2620.1,1.42972]
[1752001432428,2.10959,2620.2,2620.1,0.6665]
[1752001433136,3.13989,2620.2,2620.1,0.6665]
[1752001433536,0.76322,2620.1,2620.0,2.27984305]
[1752001433734,0.76322,2620.1,2619.9,3.73091305]
[1752001433932,1.43232,2620.1,2620.0,0.6665]
[1752001434132,1.43232,2620.1,2619.9,2.96764305]
[1752001434332,1.43232,2620.1,2619.9,3.73091305]
[1752001434734,1.43232,2620.1,2620.0,1.42975]
[1752001435633,1.43232,2620.1,2620.0,0.6665]
[1752001435840,2.73312,2620.1,2620.0,0.6665]
[1752001437336,1.0303,2620.3,2620.0,2.29801304]
[1752001437637,1.0303,2620.3,2620.2,0.76319]
[1752001437836,3.2078,2620.4,2620.3,0.76316]
[1752001438234,3.2078,2620.4,2620.0,6.19652305]
[1752001438235,0.7632,2620.2,2620.0,0.76324]
[1752001438437,2.39471304,2620.2,2620.1,0.6665]
[1752001438634,1.63151304,2620.2,2620.1,1.42972]
[1752001438936,1.63151304,2620.2,2620.1,0.76322]
[1752001439136,2.30061304,2620.2,2620.1,0.76322]
[1752001439336,2.30061304,2620.2,2620.0,2.27984305]
[1752001439337,0.76322,2620.1,2620.0,2.27984305]
[1752001439533,0.6691,2620.1,2620.0,3.70959305]
[1752001439837,0.6691,2620.1,2620.0,1.42975]
[1752001440234,0.6691,2620.1,2620.0,3.70959305]
[1752001440434,0.6691,2620.1,2620.0,1.42975]
[1752001440840,0.6871,2620.3,2620.2,0.76319]
[1752001441042,4.83931304,2620.4,2620.2,0.76319]
[1752001441043,3.2078,2620.4,2620.3,0.76316]
[1752001441251,3.8769,2620.4,2620.3,0.76316]
[1752001441436,3.8769,2620.4,2620.3,1.42966]
[1752001441741,3.2078,2620.4,2620.3,1.42966]
[1752001442838,3.856,2620.7,2620.6,0.76308]
[1752001443143,3.8769,2620.7,2620.6,1.42958]
[1752001443641,3.2078,2620.7,2620.6,0.76308]
[1752001443843,3.2078,2620.7,2620.6,2.45498]
[1752001444041,3.2078,2621.0,2620.9,0.76299]
[1752001444244,3.2078,2621.3,2621.2,0.76288]
[1752001444446,3.2078,2621.3,2621.2,1.42938]
[1752001445138,5.50841304,2621.3,2621.0,0.6712]
[1752001445443,1.63151304,2621.1,2621.0,1.43414]
[1752001445638,5.50841304,2621.3,2621.1,0.76291]
[1752001445844,3.2078,2621.3,2621.2,1.4294]
[1752001446247,3.8769,2621.3,2621.2,1.4294]
[1752001446748,3.2078,2621.3,2621.2,1.4294]
[1752001447443,3.8769,2621.3,2621.2,1.4294]
[1752001448044,3.2078,2621.3,2621.2,1.4294]
[1752001448844,3.8769,2621.3,2621.2,1.4294]
[1752001449637,3.2078,2621.3,2621.2,1.4294]
[1752001449843,3.2078,2621.6,2621.2,2.4548]
[1752001450145,4.8649,2621.9,2621.8,0.76273]
[1752001450343,5.534,2621.9,2621.8,0.76273]
[1752001450545,5.534,2621.9,2621.2,0.7629]
[1752001450546,12.16551304,2621.9,2621.5,0.6597]
[1752001450841,4.83931304,2621.6,2621.0,59.00104305]
[1752001451046,3.8769,2621.6,2621.5,0.76281]
[1752001451449,3.8769,2621.6,2621.3,0.6597]
[1752001451450,6.53871304,2621.6,2621.4,0.76283]
[1752001451649,7.30150304,2621.6,2621.4,0.76283]
[1752001451848,8.57590304,2621.6,2621.4,0.76283]
[1752001452051,4.9072,2621.6,2621.5,1.42931]
[1752001452248,3.2078,2621.6,2621.5,1.42931]
[1752001452455,3.2078,2621.9,2621.8,0.76273]
[1752001452650,3.8769,2621.9,2621.8,0.76273]
[1752001453651,3.2078,2621.9,2621.8,0.76273]
[1752001453847,3.8769,2621.9,2621.8,1.42923]
[1752001454050,3.8769,2621.9,2621.8,0.76273]
[1752001454453,3.2078,2621.9,2621.8,1.42923]
[1752001454653,3.2078,2621.9,2621.8,3.06074304]
[1752001454853,3.8974,2622.3,2622.2,0.76261]
[1752001455055,4.5665,2622.3,2622.2,0.76261]
[1752001455749,4.5665,2622.3,2621.9,0.6806]
[1752001455954,4.83931304,2622.0,2621.9,0.76268]
[1752001456355,4.83931304,2622.0,2621.8,0.76271]
[1752001456555,0.6691,2621.9,2621.8,0.76271]
[1752001457057,0.6691,2621.9,2621.8,1.42921]
[1752001457258,1.6994,2621.9,2621.5,53.1616]
[1752001457556,1.63151304,2621.6,2621.1,52.481]
[1752001457757,2.30061304,2621.2,2621.1,53.92131]
[1752001457959,2.3572,2621.5,2621.1,53.1584]
[1752001458158,3.0263,2621.5,2621.3,0.76285]
[1752001458357,3.78912,2621.5,2621.3,0.76285]
[1752001458758,3.0263,2621.5,2621.4,1.42934]
[1752001458959,0.6691,2621.5,2621.4,1.42934]